bitfinex/quotes_SOLUSD_20241101
["timestamp","ask_amount","ask_price","bid_price","bid_amount"]
[1730428651175,17.55036479,167.4,167.34,23.52586479]
[1730428651766,17.55036479,167.39,167.34,5.9755]
[1730428652978,17.55036479,167.4,167.34,23.52586479]
[1730428654086,17.55036479,167.4,167.32,16.2233]
[1730428654087,17.55036479,167.38,167.33,20.9167]
[1730428654283,17.55036479,167.37,167.33,20.9167]
[1730428655082,17.55036479,167.38,167.33,20.9167]
[1730428655281,17.55036479,167.38,167.32,33.77366479]
[1730428655487,17.55036479,167.36,167.32,16.2233]
[1730428655681,17.55036479,167.37,167.32,16.2233]
[1730428656491,17.55036479,167.37,167.32,22.1998]
[1730428656699,17.55036479,167.38,167.32,39.75016479]
[1730428657680,23.52496479,167.38,167.32,39.75016479]
[1730428659208,17.55036479,167.38,167.32,54.69156479]
[1730428659700,17.55036479,167.36,167.32,37.1412]
[1730428659901,17.55036479,167.35,167.3,5.977]
[1730428660075,17.55036479,167.36,167.3,23.52736479]
[1730428660280,17.55036479,167.35,167.3,23.52736479]
[1730428661587,17.55036479,167.35,167.3,5.977]
[1730428661989,17.55036479,167.34,167.3,5.977]
[1730428662196,17.55036479,167.34,167.29,6.0506]
[1730428662797,23.52586479,167.35,167.29,29.57856479]
[1730428663385,5.9755,167.35,167.3,17.55036479]
[1730428666902,5.9755,167.35,167.3,23.52756479]
[1730428667500,5.9755,167.35,167.3,17.55036479]
[1730428668608,17.21395639,167.35,167.3,11.23845639]
[1730428668787,17.21365639,167.36,167.3,11.23845639]
[1730428668989,11.23845639,167.36,167.31,11.23845639]
[1730428669190,37.21285639,167.38,167.33,11.23845639]
[1730428669683,37.21285639,167.38,167.32,11.23845639]
[1730428670511,11.23845639,167.36,167.31,17.21505639]
[1730428670711,11.23845639,167.37,167.31,17.21505639]
[1730428671213,11.23845639,167.37,167.31,32.15735639]
[1730428671401,17.21285639,167.38,167.32,11.23845639]
[1730428673615,17.21285639,167.38,167.32,17.21475639]
[1730428674610,11.23845639,167.41,167.35,11.23845639]
[1730428674999,11.23845639,167.41,167.32,20.9177]
[1730428675000,11.23845639,167.4,167.34,11.23845639]
[1730428675605,11.23845639,167.4,167.34,17.21395639]
[1730428675817,17.21185639,167.41,167.35,11.23845639]
[1730428676511,20.0,167.41,167.36,11.23845639]
[1730428677604,20.0,167.42,167.37,11.23845639]
[1730428679220,31.23845639,167.42,167.36,11.23845639]
[1730428679818,37.21145639,167.42,167.36,11.23845639]
[1730428680112,11.23845639,167.43,167.37,11.23845639]
[1730428680317,11.23845639,167.45,167.4,11.23845639]
[1730428680618,11.23845639,167.46,167.4,11.23845639]
[1730428681400,11.23845639,167.47,167.41,11.23845639]
[1730428681600,11.23845639,167.5,167.44,11.23845639]
[1730428681903,11.23845639,167.48,167.43,11.23845639]
[1730428682509,11.23845639,167.49,167.43,11.23845639]
[1730428682992,11.23845639,167.48,167.43,11.23845639]
[1730428683196,11.23845639,167.47,167.42,17.60325639]
[1730428683421,11.23845639,167.48,167.42,17.60325639]
[1730428684419,5.9712,167.47,167.42,17.60325639]
[1730428684619,17.20965639,167.47,167.42,17.60325639]
[1730428685005,11.23845639,167.48,167.43,11.23845639]
[1730428685316,20.0,167.49,167.44,11.23845639]
[1730428686127,31.23845639,167.49,167.43,11.23845639]
[1730428686312,37.20915639,167.49,167.43,11.23845639]
[1730428687723,17.20915639,167.49,167.43,17.21105639]
[1730428688401,5.9707,167.49,167.44,11.23845639]
[1730428689119,11.23845639,167.49,167.43,17.21105639]
[1730428689732,11.23845639,167.47,167.42,6.3648]
[1730428690410,11.23845639,167.46,167.41,11.23845639]
[1730428690810,17.21015639,167.46,167.41,11.23845639]
[1730428691011,5.9717,167.46,167.41,11.23845639]
[1730428692432,5.9712,167.48,167.43,11.23845639]
[1730428693515,17.20965639,167.48,167.42,11.23845639]
[1730428695414,17.20965639,167.48,167.42,17.21125639]
[1730428697531,17.20965639,167.48,167.43,11.23845639]
[1730428697830,15.7823,167.52,167.47,11.23845639]
[1730428697831,11.23845639,167.52,167.47,11.23845639]
[1730428698037,17.20795639,167.52,167.47,11.23845639]
[1730428699111,11.23845639,167.51,167.46,11.23845639]
[1730428700234,5.9695,167.52,167.47,11.23845639]
[1730428700418,5.9695,167.52,167.48,11.23845639]
[1730428700942,5.9695,167.52,167.47,11.23845639]
[1730428701237,17.20795639,167.52,167.46,17.20995639]
[1730428703238,11.23845639,167.49,167.45,14.9298]
[1730428703736,11.23845639,167.51,167.45,26.16825639]
[1730428704035,11.23845639,167.5,167.45,14.9298]
[1730428705037,11.23845639,167.49,167.43,17.21105639]
[1730428705339,11.23845639,167.5,167.44,11.23845639]
[1730428705941,11.23845639,167.51,167.45,11.23845639]
[1730428706117,11.23845639,167.51,167.45,17.21035639]
[1730428706445,11.23845639,167.52,167.46,11.23845639]
[1730428707322,11.23845639,167.51,167.46,17.20975639]
[1730428708021,11.23845639,167.52,167.46,17.20975639]
[1730428709541,17.20805639,167.52,167.46,17.20975639]
[1730428710412,11.23845639,167.53,167.48,11.23845639]
[1730428710615,17.20755639,167.53,167.48,11.23845639]
[1730428710846,11.23845639,167.52,167.47,11.23845639]
[1730428711541,11.23845639,167.52,167.47,17.20955639]
[1730428711916,11.23845639,167.54,167.48,11.23845639]
[1730428712219,11.23845639,167.56,167.5,11.23845639]
[1730428713315,11.23845639,167.56,167.51,11.23845639]
[1730428713517,11.23845639,167.54,167.48,33.50025639]
[1730428713825,11.23845639,167.5,167.44,55.17855639]
[1730428714022,11.23845639,167.49,167.44,43.9401]
[1730428714222,20.0,167.53,167.41,5.9733]
[1730428715352,21.03818845,167.53,167.41,5.9733]
[1730428715645,11.23845639,167.47,167.41,17.21175639]
[1730428716441,17.53432797,167.48,167.42,17.53432797]
[1730428716750,17.53432797,167.47,167.41,23.50762797]
[1730428717753,17.53432797,167.45,167.4,55.50632797]
[1730428718125,17.53432797,167.45,167.4,61.48002797]
[1730428718524,17.53432797,167.44,167.4,31.493]
[1730428718830,5.9714,167.47,167.37,17.53432797]
[1730428718831,17.53432797,167.43,167.37,17.53432797]
[1730428719656,23.50702797,167.43,167.37,23.50902797]
[1730428720226,5.9727,167.43,167.38,17.53432797]
[1730428722339,17.53432797,167.43,167.37,23.50902797]
[1730428722546,17.53432797,167.43,167.38,17.53432797]
[1730428723368,17.53432797,167.43,167.37,38.44592797]
[1730428723827,17.53432797,167.43,167.37,20.9116]
[1730428724033,17.53432797,167.43,167.38,17.53432797]
[1730428724347,17.53432797,167.43,167.37,38.44592797]
[1730428725251,17.53432797,167.44,167.38,17.53432797]
[1730428726336,23.50662797,167.44,167.38,17.53432797]
[1730428727131,17.53432797,167.44,167.38,17.53432797]
[1730428727337,17.53432797,167.46,167.4,17.53432797]
[1730428727644,17.53432797,167.46,167.41,17.53432797]
[1730428727645,20.0,167.46,167.41,17.53432797]
[1730428728381,17.53432797,167.48,167.42,17.53432797]
[1730428729646,17.53432797,167.48,167.42,23.50712797]
[1730428729956,17.53432797,167.45,167.41,14.9333]
[1730428731335,17.53432797,167.44,167.38,17.53432797]
[1730428731537,17.53432797,167.43,167.37,38.44582797]
[1730428731751,17.53432797,167.42,167.37,20.9115]
[1730428732531,17.53432797,167.43,167.38,17.53432797]
[1730428732737,23.50622797,167.45,167.39,23.50822797]
[1730428732954,17.53432797,167.46,167.4,17.53432797]
[1730428733356,17.53432797,167.45,167.39,38.44332797]
[1730428736353,17.53432797,167.46,167.4,17.53432797]
[1730428737567,20.0,167.46,167.41,17.53432797]
[1730428738258,17.53432797,167.48,167.42,17.53432797]
[1730428738576,17.53432797,167.49,167.43,17.53432797]
[1730428738778,20.0,167.48,167.43,17.53432797]
[1730428739082,20.0,167.48,167.44,17.53432797]
[1730428739458,20.0,167.48,167.43,17.53432797]
[1730428740660,17.53432797,167.51,167.46,17.53432797]
[1730428740895,23.50402797,167.52,167.46,17.53432797]
[1730428741379,17.53432797,167.51,167.46,17.53432797]
[1730428741781,17.53432797,167.49,167.43,39.53482797]
[1730428741955,17.53432797,167.47,167.43,5.9724]
[1730428742153,17.53432797,167.48,167.43,5.9724]
[1730428742464,37.53432797,167.5,167.43,5.9724]
[1730428742676,17.53432797,167.48,167.43,23.50672797]
[1730428742871,17.53432797,167.49,167.43,23.50672797]
[1730428743062,17.53432797,167.51,167.45,17.53432797]
[1730428743886,17.53432797,167.5,167.44,17.53432797]
[1730428744489,17.53432797,167.49,167.43,17.53432797]
[1730428744665,17.53432797,167.47,167.41,23.50752797]
[1730428745065,17.53432797,167.46,167.41,5.9732]
[1730428745479,17.53432797,167.47,167.41,23.50752797]
[1730428745685,23.50572797,167.47,167.41,23.50752797]
[1730428746181,23.50572797,167.47,167.42,17.53432797]
[1730428747768,17.53432797,167.48,167.42,17.53432797]
[1730428748486,17.53432797,167.48,167.43,17.53432797]
[1730428748787,17.53432797,167.52,167.46,17.53432797]
[1730428749083,5.969,167.53,167.49,17.53432797]
[1730428749589,5.969,167.53,167.48,17.53432797]
[1730428749776,5.969,167.53,167.45,15.1489]
[1730428749777,5.969,167.53,167.49,17.53432797]
[1730428750286,5.9687,167.54,167.49,17.53432797]
[1730428750461,17.53432797,167.58,167.52,17.53432797]
[1730428750874,17.53432797,167.58,167.53,17.53432797]
[1730428751579,17.53432797,167.54,167.46,32.46272797]
[1730428751782,17.53432797,167.52,167.46,32.46272797]
[1730428751982,17.53432797,167.52,167.47,17.53432797]
[1730428752179,17.53432797,167.53,167.47,17.53432797]
[1730428752764,17.53432797,167.54,167.48,17.53432797]
[1730428753087,17.53432797,167.54,167.46,20.8999]
[1730428753088,20.0,167.54,167.5,17.53432797]
[1730428753418,18.14699248,167.61,167.46,20.8999]
[1730428753419,17.53432797,167.59,167.53,17.53432797]
[1730428753586,20.0,167.58,167.53,17.53432797]
[1730428753974,37.53432797,167.58,167.52,17.53432797]
[1730428754395,5.9676,167.57,167.52,17.53432797]
[1730428756186,5.9665,167.6,167.55,17.53432797]
[1730428756663,18.14699248,167.61,167.58,17.53432797]
[1730428756863,5.9659,167.62,167.58,17.53432797]
[1730428757793,17.53432797,167.64,167.59,17.53432797]
[1730428757794,5.9655,167.63,167.59,17.53432797]
[1730428757993,5.9655,167.63,167.58,17.53432797]
[1730428758288,23.49982797,167.63,167.58,17.53432797]
[1730428759564,23.49932797,167.65,167.6,17.53432797]
[1730428759789,17.53432797,167.64,167.59,17.53432797]
[1730428760092,17.53432797,167.63,167.58,17.53432797]
[1730428760284,17.53432797,167.63,167.57,17.53432797]
[1730428760676,17.53432797,167.62,167.57,17.53432797]
[1730428760873,17.53432797,167.61,167.56,17.53432797]
[1730428761177,17.53432797,167.6,167.55,17.53432797]
[1730428761488,17.53432797,167.61,167.55,23.50252797]
[1730428761684,17.53432797,167.61,167.56,17.53432797]
[1730428761872,17.53432797,167.63,167.57,17.53432797]
[1730428762388,17.53432797,167.62,167.57,17.53432797]
[1730428762883,17.53432797,167.61,167.55,38.42342797]
[1730428763568,17.53432797,167.61,167.56,17.53432797]
[1730428764280,17.53432797,167.61,167.55,32.45522797]
[1730428764683,5.9665,167.6,167.55,32.45522797]
[1730428766204,17.53432797,167.62,167.57,17.53432797]
[1730428766801,17.53432797,167.61,167.56,17.53432797]
[1730428766975,17.53432797,167.62,167.56,17.53432797]
[1730428767577,23.50032797,167.62,167.57,17.53432797]
[1730428768088,35.06865594,167.58,167.47,17.63432797]
[1730428768431,35.06865594,167.58,167.46,22.9624]
[1730428768432,20.0,167.57,167.46,22.9624]
[1730428768875,17.53432797,167.52,167.46,22.9624]
[1730428769071,17.53432797,167.53,167.47,17.53432797]
[1730428769276,17.53432797,167.54,167.48,17.53432797]
[1730428769700,23.50312797,167.54,167.48,17.53432797]
[1730428771501,23.50312797,167.54,167.48,23.50502797]
[1730428771876,17.53432797,167.53,167.48,5.9707]
[1730428772296,17.53432797,167.53,167.48,23.50502797]
[1730428772699,17.53432797,167.54,167.48,23.50502797]
[1730428772887,17.53432797,167.54,167.49,17.53432797]
[1730428773711,17.53432797,167.55,167.49,17.53432797]
[1730428773916,17.53432797,167.57,167.51,17.53432797]
[1730428774413,17.53432797,167.56,167.5,17.53432797]
[1730428775191,17.53432797,167.55,167.49,32.46052797]
[1730428775398,17.53432797,167.54,167.49,14.9262]
[1730428775597,17.53432797,167.54,167.49,38.43102797]
[1730428775808,17.53432797,167.55,167.49,38.43102797]
[1730428776598,17.53432797,167.54,167.49,38.43102797]
[1730428777000,17.53432797,167.56,167.5,17.53432797]
[1730428777200,17.53432797,167.57,167.51,17.53432797]
[1730428777714,17.53432797,167.61,167.55,17.53432797]
[1730428777899,17.53432797,167.62,167.57,17.53432797]
[1730428778612,17.53432797,167.63,167.57,17.53432797]
[1730428778912,23.49982797,167.63,167.57,23.50172797]
[1730428779899,17.53432797,167.62,167.56,32.45412797]
[1730428780103,17.53432797,167.6,167.54,23.50302797]
[1730428780318,17.53432797,167.61,167.55,17.53432797]
[1730428781513,17.53432797,167.61,167.54,5.9687]
[1730428781514,17.53432797,167.61,167.56,17.53432797]
[1730428781709,17.53432797,167.62,167.56,17.53432797]
[1730428782701,17.53432797,167.64,167.58,17.53432797]
[1730428782918,17.53432797,167.67,167.61,17.53432797]
[1730428783444,17.53432797,167.68,167.62,17.53432797]
[1730428784094,17.53432797,167.66,167.6,17.53432797]
[1730428784820,17.53432797,167.67,167.61,17.53432797]
[1730428785927,5.9644,167.66,167.62,17.53432797]
[1730428786230,5.9644,167.66,167.61,17.53432797]
[1730428787611,23.49872797,167.66,167.6,17.53432797]
[1730428792917,17.53432797,167.65,167.6,17.53432797]
[1730428794029,17.53432797,167.67,167.61,17.53432797]
[1730428794231,17.53432797,167.67,167.62,17.53432797]
[1730428794835,17.53432797,167.67,167.61,17.53432797]
[1730428795031,17.53432797,167.66,167.61,17.53432797]
[1730428795331,23.49892797,167.66,167.61,17.53432797]
[1730428795722,17.53432797,167.65,167.6,23.50082797]
[1730428796034,17.53432797,167.64,167.59,54.22882797]
[1730428796218,17.53432797,167.63,167.57,17.53432797]
[1730428796612,17.53432797,167.61,167.55,61.10032797]
[1730428796817,17.53432797,167.61,167.56,17.53432797]
[1730428797220,23.50072797,167.61,167.56,17.53432797]
[1730428797525,5.9664,167.61,167.56,17.53432797]
[1730428799835,17.53432797,167.64,167.59,17.53432797]
[1730428800719,17.53432797,167.64,167.58,17.53432797]
[1730428801319,5.9654,167.64,167.59,17.53432797]
[1730428802041,23.49972797,167.64,167.59,17.53432797]
[1730428802348,17.53432797,167.62,167.57,17.53432797]
[1730428802726,17.53432797,167.63,167.57,17.53432797]
[1730428803047,17.53432797,167.63,167.57,23.50192797]
[1730428803234,17.53432797,167.62,167.57,23.50192797]
[1730428803455,17.53432797,167.61,167.55,40.21142797]
[1730428803759,17.53432797,167.59,167.54,23.50272797]
[1730428804427,17.53432797,167.6,167.54,23.50272797]
[1730428804940,17.53432797,167.6,167.55,17.53432797]
[1730428805257,17.53432797,167.63,167.58,17.53432797]
[1730428805436,23.49942797,167.64,167.59,17.53432797]
[1730428806343,5.9651,167.64,167.59,17.53432797]
[1730428806949,23.49942797,167.64,167.59,17.53432797]
[1730428807325,5.9651,167.64,167.59,17.53432797]
[1730428807949,17.53432797,167.64,167.58,39.33992797]
[1730428809254,17.53432797,167.66,167.6,17.53432797]
[1730428809448,17.53432797,167.65,167.6,17.53432797]
[1730428809838,17.53432797,167.65,167.59,17.53432797]
[1730428810353,23.49912797,167.65,167.59,23.50112797]
[1730428812131,17.53432797,167.61,167.57,6.0803]
[1730428812452,17.53432797,167.6,167.55,23.776884]
[1730428812759,17.53432797,167.6,167.55,25.9683]
[1730428813344,17.53432797,167.6,167.55,23.50262797]
[1730428813545,17.53432797,167.59,167.55,5.9683]
[1730428814456,17.53432797,167.58,167.54,31.2599]
[1730428814660,17.53432797,167.58,167.54,14.9212]
[1730428816048,17.53432797,167.59,167.54,14.9212]
[1730428817147,17.53432797,167.6,167.54,32.45552797]
[1730428818156,23.50102797,167.6,167.54,32.45552797]
[1730428818659,17.53432797,167.59,167.54,32.45552797]
[1730428818849,23.50102797,167.6,167.54,38.42422797]
[1730428819146,17.53432797,167.59,167.54,38.42422797]
[1730428819343,23.50102797,167.6,167.54,38.42422797]
[1730428820469,11.20589064,167.59,167.54,32.09579064]
[1730428820979,11.20589064,167.6,167.54,32.09579064]
[1730428821158,11.20589064,167.61,167.56,11.20589064]
[1730428821355,11.20589064,167.63,167.57,11.20589064]
[1730428821856,35.78769,167.69,167.45,5.9716]
[1730428821857,20.0,167.57,167.45,5.9716]
[1730428822056,20.0,167.57,167.44,27.5613]
[1730428822242,20.0,167.55,167.44,27.5613]
[1730428822444,17.52853032,167.5,167.44,60.02053032]
[1730428823038,17.52853032,167.52,167.46,17.52853032]
[1730428824055,17.52853032,167.51,167.45,17.52853032]
[1730428824261,17.52853032,167.51,167.46,41.30541432]
[1730428825465,17.52853032,167.51,167.46,47.27691432]
[1730428826139,23.49713032,167.55,167.5,17.52853032]
[1730428826340,17.52853032,167.54,167.48,41.30541432]
[1730428826549,17.52853032,167.53,167.48,41.30541432]
[1730428826972,17.52853032,167.54,167.49,17.52853032]
[1730428827474,17.52853032,167.54,167.49,5.9703]
[1730428827765,20.0,167.49,167.38,5.9741]
[1730428827940,17.52853032,167.41,167.38,5.9741]
[1730428828748,17.52853032,167.41,167.38,14.9355]
[1730428829261,17.52853032,167.4,167.38,14.9355]
[1730428830065,17.52853032,167.41,167.38,14.9355]
[1730428830746,17.52853032,167.4,167.38,14.9355]
[1730428831258,17.52853032,167.4,167.35,17.62853032]
[1730428831259,17.52853032,167.4,167.35,5.9752]
[1730428831440,5.9708,167.48,167.34,32.46773032]
[1730428831441,17.52853032,167.38,167.34,14.9392]
[1730428831646,17.52853032,167.37,167.34,14.9392]
[1730428831966,17.52853032,167.38,167.34,14.9392]
[1730428832364,17.52853032,167.36,167.34,14.9392]
[1730428832572,17.52853032,167.37,167.32,22.2394]
[1730428833069,17.52853032,167.37,167.33,20.0]
[1730428833671,17.52853032,167.34,167.31,23.776884]
[1730428833974,17.52853032,167.33,167.29,14.9437]
[1730428834566,17.52853032,167.34,167.29,20.9213]
[1730428835350,17.52853032,167.34,167.3,23.776884]
[1730428836246,17.52853032,167.33,167.29,20.9213]
[1730428837270,17.52853032,167.34,167.29,20.9213]
[1730428837458,17.52853032,167.34,167.3,23.776884]
[1730428837658,17.52853032,167.35,167.3,23.776884]
[1730428839065,17.52853032,167.34,167.3,29.753984]
[1730428839468,17.52853032,167.34,167.3,5.9771]
[1730428842953,17.52853032,167.33,167.3,5.9771]
[1730428844459,17.52853032,167.33,167.29,20.9213]
[1730428844876,17.52853032,167.34,167.29,20.9213]
[1730428845573,17.52853032,167.36,167.31,17.52853032]
[1730428847052,17.52853032,167.34,167.31,5.9766]
[1730428847275,17.52853032,167.35,167.31,5.9766]
[1730428847481,17.52853032,167.36,167.31,20.9189]
[1730428847872,17.52853032,167.35,167.31,20.9189]
[1730428848671,17.52853032,167.33,167.31,14.9423]
[1730428849383,17.52853032,167.33,167.29,5.9774]
[1730428849384,17.52853032,167.32,167.29,5.9774]
[1730428849574,17.52853032,167.31,167.29,5.9774]
[1730428849976,17.52853032,167.31,167.27,5.9783]
[1730428851185,17.52853032,167.31,167.27,20.0]
[1730428851500,5.976,167.34,167.26,20.9246]
[1730428851501,17.52853032,167.29,167.26,20.9246]
[1730428851870,17.52853032,167.3,167.26,20.9246]
[1730428852695,17.52853032,167.31,167.26,20.9246]
[1730428853072,17.52853032,167.31,167.25,18.12617252]
[1730428853073,17.52853032,167.27,167.25,0.5976422]
[1730428853275,17.52853032,167.26,167.25,0.5976422]
[1730428858098,17.52853032,167.27,167.25,0.5976422]
[1730428858278,17.52853032,167.29,167.25,0.5976422]
[1730428858601,17.52853032,167.29,167.25,6.5766422]
[1730428858798,17.52853032,167.28,167.25,0.5976422]
[1730428859100,17.52853032,167.28,167.25,6.5766422]
[1730428859287,17.52853032,167.29,167.25,21.5242422]
[1730428860897,17.52853032,167.28,167.25,21.5242422]
[1730428861786,17.52853032,167.29,167.25,21.5242422]
[1730428862599,17.52853032,167.28,167.25,21.5242422]
[1730428863196,17.52853032,167.27,167.25,0.5976422]
[1730428864495,11.24911472,167.27,167.25,0.5976422]
[1730428865402,11.24911472,167.28,167.25,0.5976422]
[1730428865699,11.24911472,167.3,167.25,21.5242422]
[1730428865879,11.24911472,167.32,167.26,11.24911472]
[1730428866376,11.24911472,167.31,167.25,32.77335692]
[1730428866996,11.24911472,167.29,167.25,21.5242422]
[1730428867894,11.24911472,167.3,167.25,21.5242422]
[1730428868099,11.24911472,167.31,167.25,32.77335692]
[1730428868399,11.24911472,167.32,167.26,11.24911472]
[1730428868603,17.56767125,167.32,167.26,41.34455525]
[1730428869899,17.56767125,167.32,167.27,20.9241]
[1730428870601,17.56767125,167.32,167.27,38.49177125]
[1730428870804,17.56767125,167.33,167.28,17.56767125]
[1730428871302,17.56767125,167.34,167.28,17.56767125]
[1730428871797,17.56767125,167.34,167.29,5.9776]
[1730428872005,17.56767125,167.33,167.29,5.9776]
[1730428873294,17.56767125,167.34,167.29,20.9217]
[1730428873494,17.56767125,167.35,167.29,38.48937125]
[1730428874286,17.56767125,167.34,167.29,38.48937125]
[1730428875616,17.56767125,167.35,167.29,38.48937125]
[1730428876504,17.56767125,167.36,167.31,17.56767125]
[1730428877104,17.56767125,167.36,167.3,41.34455525]
[1730428877806,17.56767125,167.35,167.31,5.9769]
[1730428878385,17.56767125,167.36,167.31,23.54457125]
[1730428878603,17.56767125,167.4,167.34,17.56767125]
[1730428878994,17.56767125,167.36,167.31,14.9423]
[1730428879196,17.56767125,167.36,167.31,20.9192]
[1730428879400,17.56767125,167.34,167.31,14.9423]
[1730428879817,17.56767125,167.35,167.31,14.9423]
[1730428880605,20.0,167.31,167.25,0.5976422]
[1730428880810,17.56767125,167.28,167.25,0.5976422]
[1730428881197,17.56767125,167.3,167.25,0.5976422]
[1730428881405,17.56767125,167.3,167.25,6.5766422]
[1730428881612,17.56767125,167.26,167.25,0.5976422]
[1730428882116,17.56767125,167.29,167.25,0.5976422]
[1730428883193,20.0,167.33,167.25,0.5976422]
[1730428883194,17.56767125,167.28,167.25,0.5976422]
[1730428886807,17.56767125,167.29,167.25,0.5976422]
[1730428887019,17.56767125,167.28,167.25,6.5765422]
[1730428887493,17.56767125,167.29,167.25,6.5765422]
[1730428887807,17.56767125,167.3,167.25,6.5765422]
[1730428888011,17.56767125,167.3,167.25,21.5241422]
[1730428888212,17.56767125,167.31,167.25,39.09181345]
[1730428888387,25.9764,167.33,167.25,21.5241422]
[1730428888388,17.56767125,167.3,167.25,21.5241422]
[1730428889017,17.56767125,167.28,167.25,15.5452422]
[1730428889809,17.56767125,167.27,167.25,15.5452422]
[1730428890017,17.56767125,167.28,167.25,21.5242422]
[1730428890512,11.24716779,167.3,167.25,21.5242422]
[1730428890895,11.24716779,167.32,167.27,5.9783]
[1730428891314,11.24716779,167.31,167.27,5.9783]
[1730428892096,11.24716779,167.31,167.26,5.9787]
[1730428892511,17.56836,167.31,167.26,5.9787]
[1730428893822,17.56836,167.3,167.26,5.9787]
[1730428894508,17.56836,167.31,167.26,5.9787]
[1730428894822,17.56836,167.31,167.26,20.9254]
[1730428895223,17.56836,167.32,167.26,38.49376]
[1730428895432,17.56836,167.33,167.27,17.56836]
[1730428895715,17.56836,167.33,167.28,17.56836]
[1730428895927,17.56836,167.34,167.28,17.56836]
[1730428896908,17.56836,167.33,167.29,20.9217]
[1730428897237,17.56836,167.3,167.25,43.1087422]
[1730428897520,17.56836,167.31,167.25,60.6771022]
[1730428898098,17.56836,167.3,167.25,43.1087422]
[1730428898506,17.56836,167.31,167.25,60.6771022]
[1730428900098,17.56836,167.3,167.25,60.6771022]
[1730428900423,17.56836,167.29,167.25,21.5233422]
[1730428900611,5.9755,167.35,167.25,21.5233422]
[1730428900612,17.56836,167.3,167.25,21.5233422]
[1730428901327,17.56836,167.29,167.25,21.5233422]
[1730428901708,17.56836,167.3,167.25,21.5233422]
[1730428902211,17.56836,167.33,167.27,17.56836]
[1730428902527,17.56836,167.32,167.27,17.56836]
[1730428902712,17.56836,167.31,167.26,17.56836]
[1730428903326,17.56836,167.31,167.27,5.9783]
[1730428904231,17.56836,167.32,167.27,20.9241]
[1730428904530,17.56836,167.32,167.27,38.49246]
[1730428905225,17.56836,167.32,167.27,20.9241]
[1730428907012,17.56836,167.33,167.27,38.49246]
[1730428907820,23.54366,167.36,167.3,17.56836]
[1730428908718,23.54366,167.36,167.3,23.54546]
[1730428909235,17.56836,167.34,167.3,5.9771]
[1730428909814,17.56836,167.34,167.29,20.9217]
[1730428910928,17.56836,167.33,167.29,20.9217]
[1730428912539,11.23978659,167.34,167.29,20.9217]
[1730428915031,11.23978659,167.34,167.29,26.18388659]
[1730428916511,31.23978659,167.35,167.29,26.18388659]
[1730428917327,31.23978659,167.35,167.29,32.16148659]
[1730428918421,20.0,167.37,167.32,11.23978659]
[1730428918741,11.23978659,167.38,167.33,11.23978659]
[1730428919541,11.23978659,167.37,167.31,11.23978659]
[1730428920442,11.23978659,167.37,167.32,5.9765]
[1730428920622,11.23978659,167.34,167.3,5.977]
[1730428920824,11.23978659,167.33,167.28,55.93927059]
[1730428921042,11.23978659,167.33,167.28,32.16238659]
[1730428921617,11.23978659,167.31,167.26,15.8198]
[1730428921820,11.23978659,167.3,167.25,0.5976422]
[1730428922542,11.23978659,167.3,167.26,5.9785]
[1730428922927,11.23978659,167.3,167.25,6.5766422]
[1730428923725,17.21678659,167.31,167.25,17.81642879]
[1730428924533,11.23978659,167.3,167.25,6.5766422]
[1730428925730,11.23978659,167.31,167.25,32.76402879]
[1730428927428,11.23978659,167.33,167.28,11.23978659]
[1730428927631,11.23978659,167.33,167.27,11.23978659]
[1730428928568,11.23978659,167.3,167.26,5.9787]
[1730428928752,11.23978659,167.31,167.26,5.9787]
[1730428929243,11.23978659,167.32,167.26,17.21848659]
[1730428929835,11.23978659,167.34,167.28,11.23978659]
[1730428930950,11.23978659,167.34,167.28,17.21748659]
[1730428931245,11.23978659,167.34,167.28,5.9777]
[1730428931647,11.23978659,167.34,167.28,17.21748659]
[1730428932940,17.21528659,167.35,167.29,11.23978659]
[1730428933125,11.23978659,167.37,167.32,11.23978659]
[1730428933443,11.23978659,167.39,167.33,11.23978659]
[1730428934450,17.21388659,167.39,167.33,17.21588659]
[1730428934748,11.23978659,167.38,167.33,5.9761]
[1730428936749,11.23978659,167.39,167.33,17.21588659]
[1730428936974,11.23978659,167.41,167.35,11.23978659]
[1730428937246,11.23978659,167.44,167.38,11.23978659]
[1730428938049,11.23978659,167.42,167.36,32.15268659]
[1730428938556,11.23978659,167.43,167.37,11.23978659]
[1730428938844,11.23978659,167.42,167.36,32.15268659]
[1730428941257,17.21198659,167.45,167.39,11.23978659]
[1730428942325,11.23978659,167.44,167.39,11.23978659]
[1730428942529,11.23978659,167.42,167.37,11.23978659]
[1730428943561,11.23978659,167.42,167.36,32.15238659]
[1730428943759,11.23978659,167.42,167.37,11.23978659]
[1730428943931,11.23978659,167.43,167.37,11.23978659]
[1730428944132,20.0,167.43,167.38,11.23978659]
[1730428944345,20.0,167.43,167.38,17.21408659]
[1730428945146,31.23978659,167.43,167.37,11.23978659]